{"text_format":"1","workbook":"xlsx","n_sheets":1,"sheets":["Ark1"],"not_rendered":{"charts":0,"images":10,"macros":1,"external_links":0,"defined_names":0,"comments":0,"pivot_tables":0},"unopened":[],"bounds":{"document_bytes":16777216,"sheet_cells":100000,"rows_first":2000,"rows_last":500,"rows_between":2000,"halvings":0,"cell_chars":16384,"cell_head_chars":4096},"cells_cut":0,"cells_raw":0,"read":"whole","date_system":"1900"}

{"sheet":"Ark1","index":0,"n_rows":112,"n_cols":10,"rows_kept":112,"cut":false,"hidden":false,"merged":[[59,2,59,8],[77,7,77,8],[72,2,72,9],[73,2,73,9],[74,2,74,9],[75,2,75,9],[76,2,76,9],[63,2,63,9],[64,2,64,9],[65,2,65,9],[66,4,66,5],[66,7,66,8],[67,4,67,5],[67,7,67,8],[102,2,102,6],[103,2,103,6],[104,5,104,6],[104,2,104,4],[93,2,93,6],[100,2,100,6],[101,2,101,6],[87,2,87,7],[88,2,88,7],[89,2,89,7],[92,2,92,3],[82,2,82,8],[90,2,90,3],[90,5,90,6],[91,2,91,3],[83,2,83,9],[86,2,86,7],[9,2,9,8],[1,2,1,8],[2,2,2,8],[3,2,3,8],[8,2,8,8],[5,2,5,8],[46,2,46,8],[47,2,47,9],[58,4,58,5],[50,2,50,9],[51,2,51,9],[52,2,52,9],[53,2,53,9],[54,4,54,5],[54,7,54,8],[58,7,58,8],[27,2,27,9],[28,2,28,9],[29,2,29,9],[30,2,30,9],[45,3,45,8],[23,2,23,7],[10,2,10,8],[11,2,11,8],[12,4,12,5],[13,2,16,2],[13,3,16,3],[111,2,111,4],[109,2,109,4],[111,5,111,6],[105,5,105,6],[106,5,106,6],[109,5,109,6],[110,2,110,4],[110,5,110,6],[107,2,107,4],[107,5,107,6],[105,2,105,4],[106,2,106,4],[108,2,108,4]]}
[]
[]
[null,null,"Tilskuddskalkulator 2023"]
[null,null,"Vet du hvor mye din kommune får i tilskudd fra IMDi i 2023? Denne kalkulatoren hjelper deg å beregne tilskuddene knyttet til flyktninger og innvandrere for 2023 med satser i revidert statsbudsjett for 2023 (Juni)."]
[]
[null,null,"For å bruke kalkulatoren, trykk først på knappen \"Aktiver innhold\" helt øverst, så vil det komme opp en dialogboks, trykk deretter på \"Ja\". Dette er for å aktivere Makroer. Gå til de aktuelle tilskuddsordninger for å se hvilke satser som gjelder i år og sett inn antall personer som utløser de ulike satsene i kolonnen som heter Sett inn antall. Ved behov for mer informasjon om det enkelte tilskudd, kan man trykke på knappen, og få ytterligere informasjon om satsene. For å se totalt tilskuddsbeløp for ordningene samlet, trykk \"Gå til oppsummeringstabellen\" nederst. Du kan nullstille beløp og antall i en bestemt tabell ved å trykke på \"Nullstill denne tabellen\" ved siden av i tabellen, eller i hele arket alt ved å trykke på nullstillknappen nederst på arket. For å estimere deling av tilskudd mellom kommuner er det også mulig å legge inn desimaltall, husk å bruke komma om du vil legge inn desimaltall. Delingsnøkler finnes i de respektive rundskrivene."]
[null,null,"Har du spørsmål om Tilskuddskalkulator? Send e-post til nama@imdi.no"]
[]
[null,null,"Integreringstilskudd, eldretilskudd og barnehagetilskudd"]
[null,null,"Ordningen gjelder i all hovedsak flyktninger og deres familiegjenforente som ble bosatt i perioden 2019-2023. Det er forskjellige satser som gjelder avhengig av hvilket år personene ble bosatt for første gang, og hvilken kategori de tilhører. "]
[null,null,"Les mer om ordningen på imdi.no."]
[]
[null,null,"Tilskuddsår"," Bosettingsår","Kategori",null,"Sats","Sett inn antall","Tilskuddsbeløp"]
[null,null,"Integreringstilskudd år 1",2023,"Enslige voksne",null,241100,null,{"$f":"G14*H14","v":0}]
[null,null,null,null,"Voksne",null,194400,null,{"$f":"G15*H15","v":0}]
[null,null,null,null,"Enslige mindreårige",null,187000,null,0]
[null,null,null,null,"Barn",null,194400,null,0]
[null,null,"Integreringstilskudd år 2 ",2022,"Alle flyktninger",null,249500,null,0]
[null,null,"Integreringstilskudd år 3 ",2021,"Alle flyktninger",null,177400,null,0]
[null,null,"Integreringstilskudd år 4 ",2020,"Alle flyktninger",null,88000,null,0]
[null,null,"Integreringstilskudd år 5 ",2019,"Alle flyktninger",null,72000,null,0]
[null,null,"Barnehagetilskudd ",2023,"Barn 0-5 år",null,27800,null,0]
[null,null,"Eldretilskudd ",2023,"Voksne over 60 år",null,180600,null,0]
[null,null,null,null,null,null,null,null,{"$f":"SUM(I14:I23)","v":0}]
[]
[]
[]
[null,null,"Særskilt tilskudd for bosetting av enslige mindreårige flyktninger "]
[null,null,"Enslige mindreårige (EM) er en fellesbetegnelse for alle barn og unge under 18 år som kommer til landet uten foreldre eller andre voksne med foreldreansvar i Norge. Det er forskjellige satser som gjelder avhengig av barnets alder og bosettingstidspunkt. Tilskuddet utbetales til og med året den enslige mindreårige fyller 20 år."]
[null,null,"Les mer om ordningen på imdi.no."]
[]
[null,null,"Bosettingstidspunkt","Lav sats","Sett inn antall",null,"Høy sats","Sett inn antall",null,"Tilskuddsbeløp"]
[null,null,"Før 2023",721800,null,null,1144400,null,null,{"$f":"D33*E33+G33*H33","v":0}]
[null,null,"2023-01-01",{"$f":"D33","v":721800},null,null,{"$f":"G33","v":1144400},null,null,0]
[null,null,"2023-02-01",{"$f":"$D$33*11/12","v":661650},null,null,{"$f":"$G$33*11/12","v":1049033.3333333333},null,null,0]
[null,null,"2023-03-01",{"$f":"$D$33*10/12","v":601500},null,null,{"$f":"$G$33*10/12","v":953666.66666666663},null,null,0]
[null,null,"2023-04-01",{"$f":"$D$33*9/12","v":541350},null,null,{"$f":"$G$33*9/12","v":858300},null,null,0]
[null,null,"2023-05-01",{"$f":"$D$33*8/12","v":481200},null,null,{"$f":"$G$33*8/12","v":762933.33333333337},null,null,0]
[null,null,"2023-06-01",{"$f":"$D$33*7/12","v":421050},null,null,{"$f":"$G$33*7/12","v":667566.66666666663},null,null,0]
[null,null,"2023-07-01",{"$f":"$D$33*6/12","v":360900},null,null,{"$f":"$G$33*6/12","v":572200},null,null,0]
[null,null,"2023-08-01",{"$f":"$D$33*5/12","v":300750},null,null,{"$f":"$G$33*5/12","v":476833.33333333331},null,null,0]
[null,null,"2023-09-01",{"$f":"$D$33*4/12","v":240600},null,null,{"$f":"$G$33*4/12","v":381466.66666666669},null,null,0]
[null,null,"2023-10-01",{"$f":"$D$33*3/12","v":180450},null,null,{"$f":"$G$33*3/12","v":286100},null,null,0]
[null,null,"2023-11-01",{"$f":"$D$33*2/12","v":120300},null,null,{"$f":"$G$33*2/12","v":190733.33333333334},null,null,0]
[null,null,"2023-12-01",{"$f":"$D$33*1/12","v":60150},null,null,{"$f":"$G$33*1/12","v":95366.666666666672},null,null,0]
[]
[null,null,"Totalt",null,null,null,null,null,null,{"$f":"SUM(J33:J46)","v":0}]
[]
[]
[]
[null,null,"Tilskudd til opplæring i norsk og samfunnskunnskap for voksne innvandrere"]
[null,null,"Kommunen mottar dette tilskuddet for voksne innvandrere som bor i kommunen og som har rett og plikt til opplæring i norsk og samfunnskunnskap. Tilskuddet utbetales per person i målgruppen (persontilskudd), som regel over tre år. Kommunene som har 150 personer eller færre i målgruppen, får også et grunntilskudd."]
[null,null,"Les mer om ordningen på imdi.no."]
[]
[null,null,"Tilskudd*","Lav sats","Antall personer i kommunen med lav sats",null,"Høy sats","Antall personer i kommunen med høy sats",null,"Tilskuddsbeløp"]
[null,null,"Persontilskudd år 1 (2023)",16100,null,null,38100,null,null,{"$f":"D56*E56+G56*H56","v":0}]
[null,null,"Persontilskudd år 2 (2022)",29300,null,null,75600,null,null,{"$f":"D57*E57+G57*H57","v":0}]
[null,null,"Persontilskudd år 3 (2021)",18400,null,null,52100,null,null,{"$f":"D58*E58+G58*H58","v":0}]
[null,null,"Grunntilskudd for 2023",224100,"Velg beløpet for Grunntilskudd her",null,665300,5,null,"Velg beløpet for Grunntilskudd her"]
[null,null,"",null,null,null,null,null,null,{"$f":"SUM(J56:J59)","v":0}]
[null,null,"*I kolonnen ‘tilskudd’ indikerer årstallene i parentes det året som personene som utløser persontilskuddet kom inn i målgruppen.",null,null,null,null,null,null,{"$f":"SUM(E56:E58)+SUM(H56:H58)","v":0}]
[]
[]
[null,null,"Tilskudd til opplæring i norsk for voksne personer med kollektiv beskyttelse "]
[null,null,"Kommunen mottar dette tilskuddet for voksne personer med kollektiv beskyttelse som bor i kommunen og som har rett til opplæring i norsk. Tilskuddet utbetales per person i målgruppen (persontilskudd), og er ettårig. Kommunene som har 150 personer eller færre i målgruppen, får også et grunntilskudd i 2023."]
[null,null,"Les mer om ordningen på imdi.no."]
[]
[null,null,"Tilskudd*","Lav sats","Antall personer i kommunen med lav sats",null,"Høy sats","Antall personer i kommunen med høy sats",null,"Tilskuddsbeløp"]
[null,null,"Personstilskudd § 37 d år 1 (2023)",null,null,null,46400,null,null,{"$f":"G69*H69","v":0}]
[null,null,"Totalt",null,null,null,null,null,null,{"$f":"SUM(J69)","v":0}]
[null,null,"*I kolonnen ‘tilskudd’ indikerer årstallene i parentes det året som personene som utløser persontilskuddet kom inn i målgruppen."]
[]
[]
[null,null,"Tilskudd for bosetting av personer med nedsatt funksjonsevne og/eller atferdsvansker"]
[null,null,"Kommunen mottar dette tilskuddet ved bosetting av flyktninger med alvorlige, kjente funksjonshemminger og/eller atferdsvansker.Tilskuddsordningen skal dekke ekstraordinære kommunale utgifter som følger av bosetting av flyktninger med nedsatt fysisk og/eller psykisk funksjonsevne; samt personer med voldelig adferd og rusproblemer eller alvorlige atferdsproblemer. Satsen avhenger av når vedkommende er bosatt. Ordningen består av to typer tilskudd: Tilskudd 1 og Tilskudd 2. Tilskudd 1 er et engangstilskudd og kan tildeles i enten første eller andre bosettingsår. Tilskudd 2 kan tildeles årlig i integreringstilskuddsperioden, det vil si i maksimalt 5 år. "]
[null,null,"Les mer om ordningen på imdi.no."]
[]
[null,null,"Bosettingstidspunkt","Tilskudd 1","Antall personer med tilskudd 1",null,"Tilskudd 2 (maks. sats)","Stipulert inntekt for tilskudd 2",null,"Tilskuddsbeløp T1 + T2"]
[null,null,2023,196400,null,null,1520000,null,null,{"$f":"D79*E79+H79","v":0}]
[null,null,2022,196400,null,null,1520000,null,null,{"$f":"D80*E80+H80","v":0}]
[null,null,2021,196400,null,null,1430000,null,null,0]
[null,null,2020,190500,null,null,1361000,null,null,0]
[null,null,"Totalt",null,null,null,null,null,null,{"$f":"SUM(J79:J82)","v":0}]
[]
[]
[]
[null,null,"Tilskuddsordning til opplæring i norsk og samfunnskunnskap for asylsøkarar i mottak 2023\n "]
[null,null,"Kommuner som tilbyr opplæring til asylsøkere norsk eller samfunnskunnskap i mottak. Tilskuddene utbetales per person som er i målgruppa for ordningene."]
[null,null,"Les mer om ordningen på imdi.no."]
[]
[null,null,"Kategori",null,null,"Antall personer i målgruppen"]
[null,null,"Opplæring i norsk for asysøkere",null,16000,null,null,{"$f":"E92*F92","v":0}]
[null,null,"Opplæring for samfunnskunnskap",null,2300,null,null,{"$f":"E93*G93","v":0}]
[null,null,"Totalt",null,null,null,null,{"$f":"SUM(H92:H93)","v":0}]
[]
[]
[]
[]
[]
[]
[null,null,"Oppsummeringstabell"]
[null,null,"Denne tabellen oppsummerer sum av beregnet tilskudd til kommunen i 2023."]
[null,null,"Les mer om IMDis tilskuddsordninger på imdi.no."]
[]
[null,null,"Tilskuddsordning"]
[null,null,"Integreringstilskudd ",null,null,{"$f":"I24","v":0}]
[null,null,"Særskilt tilskudd for bosetting av enslige mindreårige flyktninger",null,null,{"$f":"J47","v":0}]
[null,null,"Tilskudd til opplæring i norsk og samfunnskunnskap for voksne innvandrere ",null,null,{"$f":"J60","v":0}]
[null,null,"Tilskudd til opplæring i norsk  for voksne personer med kollektiv beskyttelse",null,null,null,{"$f":"J70","v":0}]
[null,null,"Tilskudd for bosetting av personer med nedsatt funksjonsevne og/eller atferdsvansker",null,null,{"$f":"J83","v":0}]
[null,null,"Tilskudd til opplæring i norsk, norsk kultur og norske verdier for asylsøkere",null,null,{"$f":"H94","v":0}]
[null,null,"Totalt",null,null,{"$f":"SUM(F106:F111)","v":0}]